bitfinex/quotes_ETHUSD_20220226
["timestamp","ask_amount","ask_price","bid_price","bid_amount"]
[1645916843687,4.38e-05,2781.8,2781.4,10.88]
[1645916843887,3.1919585,2781.9,2781.5,2.2275837]
[1645916844091,3.1919585,2781.9,2780.1,1.2132]
[1645916844289,3.1919585,2781.9,2780.4,0.43]
[1645916844492,7.7161,2781.8,2780.6,5.4606]
[1645916844729,0.1438,2781.7,2780.6,5.2106]
[1645916845333,0.3561,2781.6,2780.6,5.2106]
[1645916845535,0.1438,2781.5,2780.6,5.2106]
[1645916847139,0.3561,2781.6,2780.6,5.2106]
[1645916847936,0.8994,2781.7,2780.6,5.2106]
[1645916848388,8.8038,2781.8,2780.6,5.2106]
[1645916848995,9.1599,2781.8,2780.6,5.2106]
[1645916849999,0.2061,2781.6,2780.6,5.2106]
[1645916850806,0.1438,2781.5,2780.6,5.2106]
[1645916851408,0.2061,2781.4,2780.6,5.2106]
[1645916851606,0.1438,2781.3,2780.6,5.2106]
[1645916852145,0.1438,2781.3,2780.7,5.9294]
[1645916852340,0.3499,2781.3,2780.7,5.9294]
[1645916852534,0.4999,2781.5,2780.7,5.9294]
[1645916852940,0.3561,2781.5,2780.7,5.9294]
[1645916853137,0.66014292,2781.6,2780.7,5.9294]
[1645916855345,1.55954292,2781.7,2780.7,5.9294]
[1645916855882,1.55954292,2781.7,2780.7,9.7855]
[1645916855883,0.66014292,2781.7,2780.7,9.7855]
[1645916856083,3.1919585,2781.9,2780.7,9.7855]
[1645916856283,3.1919585,2781.9,2780.8,0.7861]
[1645916856484,3.1919585,2781.9,2780.9,3.5]
[1645916856680,3.1919585,2781.9,2780.9,3.93]
[1645916857085,3.1919585,2781.9,2781.0,0.3561]
[1645916857287,3.1919585,2781.9,2781.0,1.68517]
[1645916857591,3.1919585,2781.9,2781.0,1.32907]
[1645916857986,3.1919585,2781.9,2781.0,1.68517]
[1645916858188,3.1919585,2781.9,2781.0,1.32907]
[1645916858386,1.51948209,2781.8,2781.0,1.32907]
[1645916858786,1.51948209,2781.8,2781.0,1.68517]
[1645916860333,1.51948209,2781.8,2781.0,2.5842399]
[1645916860734,1.51948209,2781.8,2781.2,1.0]
[1645916860935,0.6207523,2781.1,2781.0,2.2281399]
[1645916861341,0.6207523,2781.1,2781.0,3.2281399]
[1645916863778,3.1919585,2781.9,2781.1,0.0499477]
[1645916863979,3.1919585,2781.9,2781.1,0.4799477]
[1645916863980,1.51942367,2781.8,2781.1,0.4799477]
[1645916865401,3.1919585,2781.9,2781.4,0.8989]
[1645916865587,3.1919585,2781.9,2781.5,16.60756]
[1645916865588,5.85e-05,2781.9,2781.5,16.60756]
[1645916865785,5.85e-05,2781.9,2781.7,13.016]
[1645916865983,5.85e-05,2781.9,2781.8,24.5001]
[1645916866183,5.85e-05,2781.9,2781.8,13.6201]
[1645916867431,5.85e-05,2781.9,2781.8,15.7561]
[1645916867633,5.85e-05,2781.9,2781.8,26.81708462]
[1645916869045,3.533e-05,2782.4,2782.2,13.016]
[1645916869241,3.533e-05,2782.4,2782.3,17.29287]
[1645916869439,0.00420592,2782.9,2782.3,17.29287]
[1645916869641,0.56434884,2783.4,2782.4,0.3561]
[1645916869839,0.1436,2783.5,2782.4,0.43]
[1645916870343,0.1436,2783.6,2782.4,11.6661]
[1645916870544,0.1436,2783.6,2782.4,11.31]
[1645916870742,0.1436,2783.6,2782.6,0.89853]
[1645916870972,0.1436,2783.6,2782.8,0.89849]
[1645916871176,0.1436,2783.6,2782.9,6.1345]
[1645916871577,8.5036,2783.7,2782.9,6.1345]
[1645916871777,0.1436,2783.7,2782.9,6.1345]
[1645916871980,0.3561,2783.9,2782.9,6.1345]
[1645916872184,1.02387985,2784.0,2782.9,9.6345]
[1645916872382,0.3561,2784.1,2783.0,0.43]
[1645916872383,1.23637985,2784.1,2783.0,0.43]
[1645916872584,3.5,2784.0,2783.0,0.43]
[1645916872782,3.5,2784.0,2782.9,7.93125]
[1645916872783,0.3561,2783.9,2782.9,7.93125]
[1645916872983,0.3561,2783.7,2782.9,6.1345]
[1645916873185,3.5,2783.9,2782.9,6.1345]
[1645916873381,0.00516494,2783.6,2782.9,6.1345]
[1645916873785,0.00516494,2783.6,2782.9,17.0145]
[1645916873985,0.00516494,2783.6,2782.9,6.5645]
[1645916874185,4.38027985,2784.2,2782.9,6.5645]
[1645916874385,1.23637985,2784.2,2782.9,6.5645]
[1645916874634,0.00516518,2783.4,2782.9,6.5645]
[1645916875423,7.5036,2784.1,2782.9,6.5645]
[1645916875622,0.00516528,2783.3,2782.9,6.5645]
[1645916876421,7.28582329,2784.1,2783.1,0.89842]
[1645916876624,0.00418452,2784.0,2783.1,0.89842]
[1645916877023,0.00418452,2784.0,2782.9,6.1345]
[1645916878030,0.00248124,2783.8,2783.0,3.0]
[1645916878881,0.00248124,2783.8,2783.1,1.7968541]
[1645916879180,1.37997985,2784.3,2783.1,1.7968541]
[1645916879181,0.3561,2784.3,2783.1,1.7968541]
[1645916879382,0.00248119,2783.8,2783.1,0.89843]
[1645916880185,1.01994489,2784.3,2783.1,0.89843]
[1645916880488,0.00516345,2783.8,2783.4,0.89831]
[1645916880688,0.00516345,2783.8,2783.5,4.9856]
[1645916880886,0.00516345,2783.8,2783.5,3.36611247]
[1645916881484,0.3561,2784.5,2783.5,3.36611247]
[1645916881784,0.00516362,2783.8,2783.6,0.89825]
[1645916882721,0.43771684,2784.6,2783.6,0.89825]
[1645916882922,0.00516367,2783.8,2783.6,0.89825]
[1645916883525,0.00516367,2783.8,2783.6,1.32825]
[1645916883927,0.43771684,2784.6,2783.6,1.32825]
[1645916884128,0.00483281,2783.8,2783.6,1.32825]
[1645916884429,0.00483281,2783.8,2783.7,0.8982311]
[1645916884629,0.00483281,2783.8,2783.7,8.0829311]
[1645916884828,0.00483281,2783.8,2783.7,7.6147]
[1645916884829,3.281e-05,2783.8,2783.7,7.6147]
[1645916885031,0.00416245,2784.7,2783.7,18.4947]
[1645916885229,0.66384489,2785.0,2784.1,0.8981074]
[1645916885436,1.51814813,2785.0,2784.5,10.88]
[1645916885634,0.00414109,2785.0,2784.7,10.88]
[1645916885884,1.16384489,2785.6,2785.1,10.88]
[1645916885885,0.5,2785.6,2785.1,10.88]
[1645916886081,0.5,2785.6,2785.2,0.43]
[1645916886287,0.5,2785.6,2785.3,0.43]
[1645916886485,0.66415728,2785.2,2784.9,1.79537]
[1645916886680,0.66415728,2785.2,2785.0,7.1813]
[1645916887586,0.41415728,2785.2,2785.0,7.1813]
[1645916888386,0.41415728,2785.2,2785.0,18.0613]
[1645916888587,0.41415728,2785.2,2785.0,18.4913]
[1645916889654,5.728e-05,2785.2,2785.0,18.4913]
[1645916890034,5.728e-05,2785.2,2785.0,7.6113]
[1645916890234,0.00491445,2785.2,2785.0,7.6113]
[1645916890435,0.00491445,2785.2,2785.0,18.4913]
[1645916890636,7.54818512,2786.3,2785.1,3.0]
[1645916890838,1.01994489,2786.3,2785.1,3.0]
[1645916891037,1.01994489,2786.3,2785.1,3.89777]
[1645916891235,0.3561,2786.3,2785.1,3.89777]
[1645916891448,0.3561,2786.3,2785.3,0.8977148]
[1645916891645,0.66384489,2786.5,2785.4,11.55075]
[1645916891844,0.8561,2786.8,2785.4,20.92306866]
[1645916892043,0.3561,2786.8,2785.4,19.22306866]
[1645916892242,0.3561,2786.8,2785.7,10.88]
[1645916892440,0.3561,2786.8,2785.9,0.89746]
[1645916892641,0.3561,2786.8,2785.9,1.32746]
[1645916893043,0.3561,2786.8,2786.0,4.5231]
[1645916893483,0.3561,2787.1,2786.0,4.5231]
[1645916893684,1.01994489,2787.1,2786.0,4.5231]
[1645916893882,1.01994489,2787.1,2786.0,5.42055]
[1645916894092,1.01994489,2787.1,2786.1,0.89744]
[1645916894288,0.3061,2787.1,2786.1,0.89744]
[1645916894484,0.3561,2787.2,2786.1,1.32744]
[1645916894687,0.46994489,2787.3,2786.1,1.32744]
[1645916894889,0.00516432,2786.7,2786.3,0.89737]
[1645916895487,0.00516432,2786.7,2786.3,1.7947496]
[1645916895685,0.00516432,2786.7,2786.3,2.6921196]
[1645916895886,0.3561,2787.2,2786.3,2.6921196]
[1645916896086,0.00516442,2786.6,2786.3,2.6921196]
[1645916897143,0.02065457,2787.1,2786.3,2.6921196]
[1645916897144,0.3561,2787.4,2786.3,2.6921196]
[1645916897329,0.00516447,2786.6,2786.3,2.6921196]
[1645916897734,6.447e-05,2786.6,2786.3,2.6921196]
[1645916897938,6.447e-05,2786.6,2786.4,11.31]
[1645916898135,0.01164573,2787.4,2786.5,3.0]
[1645916898338,0.01164573,2787.4,2786.5,7.6075]
[1645916898538,0.01164573,2787.4,2786.5,7.1775]
[1645916898735,0.4995,2787.3,2786.5,7.1775]
[1645916898935,0.3561,2787.1,2786.5,7.1775]
[1645916899135,0.3561,2786.9,2786.5,3.94061116]
[1645916899340,0.89773,2787.2,2786.5,3.94061116]
[1645916899341,0.3561,2786.7,2786.5,3.94061116]
[1645916899537,0.3061,2786.7,2786.5,3.94061116]
[1645916899736,0.10123049,2786.6,2786.5,3.94061116]
[1645916900982,0.10123049,2786.9,2786.5,2.32222773]
[1645916901681,3.8061,2787.0,2786.0,4.5231]
[1645916901682,0.1565361,2786.1,2786.0,4.5231]
[1645916903889,0.1065361,2786.1,2786.0,4.5231]
[1645916904494,0.1065361,2786.1,2785.9,0.00518525]
[1645916905634,0.1065361,2786.1,2785.9,0.0051853]
[1645916906738,0.1065361,2786.1,2785.8,4.2333]
[1645916906937,0.1065361,2786.1,2785.9,0.0051853]
[1645916907935,0.1065361,2786.1,2785.8,4.2333]
[1645916908135,0.1065361,2786.1,2785.9,0.0051853]
[1645916908998,0.1065361,2786.1,2785.8,4.2333]
[1645916909499,0.1065361,2786.1,2785.9,0.0051853]
[1645916910199,0.1065361,2786.1,2785.8,4.2333]
[1645916910597,0.1065361,2786.1,2785.9,0.0051853]
[1645916911399,0.1065361,2786.1,2785.8,4.2333]
[1645916911802,0.1065361,2786.1,2785.9,0.0051853]
[1645916912627,0.1065361,2786.1,2785.8,4.2333]
[1645916912924,0.1065361,2786.1,2785.9,0.0051853]
[1645916914031,0.1065361,2786.1,2785.8,4.2333]
[1645916914230,0.1065361,2786.1,2785.9,0.0051853]
[1645916914629,1.4571526,2786.0,2785.9,0.0051853]
[1645916914833,1.45717722,2786.0,2785.9,0.0051853]
[1645916915028,0.10123049,2786.0,2785.9,0.0051853]
[1645916915230,0.10123049,2786.0,2785.8,4.2333]
[1645916915428,0.10123049,2786.0,2785.8,4.23848535]
[1645916916275,0.10123049,2786.0,2785.8,4.2333]
[1645916916676,0.10123049,2786.0,2785.8,4.2384854]
[1645916917075,0.00530561,2786.1,2785.8,4.2384854]
[1645916917579,0.41696505,2786.7,2785.9,3.0]
[1645916917775,1.35386552,2786.6,2785.9,3.0]
[1645916917979,1.35386552,2786.5,2785.9,3.0]
[1645916918183,1.35386552,2786.4,2785.8,4.23848535]
[1645916918379,1.35386552,2786.3,2785.8,4.23848535]
[1645916918579,1.35386552,2786.2,2785.8,4.23848535]
[1645916918783,1.35386552,2786.1,2785.8,4.2333]
[1645916918982,0.3561,2786.8,2786.0,0.0051852]
[1645916919184,1.35495879,2786.7,2786.0,0.0051852]
[1645916919833,1.35495879,2786.6,2785.8,4.2333]
[1645916920033,1.35495879,2786.5,2785.8,4.2333]
[1645916920240,1.35495879,2786.4,2786.2,0.00518495]
[1645916920435,1.35495879,2786.7,2786.2,0.00518495]
[1645916920635,3.8561,2786.8,2786.2,0.00518495]
[1645916920636,1.35495879,2786.6,2786.2,0.00518495]
[1645916920834,1.35495879,2786.7,2786.2,0.00518495]
[1645916921035,1.35495879,2786.6,2785.8,2.62020197]
[1645916921239,1.35495879,2786.5,2786.3,0.0051849]
[1645916921436,1.35495879,2786.4,2786.3,0.0051849]
[1645916922236,1.35495879,2786.4,2785.8,2.62020197]
[1645916922437,1.35495879,2786.3,2785.8,2.62020197]
[1645916922638,1.35495879,2786.2,2785.8,2.62020197]
[1645916922840,1.23637985,2786.8,2785.8,2.62020197]
[1645916922841,1.35495879,2786.1,2785.8,2.62020197]
[1645916923042,1.35495879,2786.0,2785.8,2.62020197]
[1645916923236,1.23637985,2786.8,2785.8,2.62020197]
[1645916923237,1.35495879,2785.9,2785.8,2.62020197]
[1645916923877,1.35495879,2785.9,2785.7,0.00471114]
[1645916924077,1.35495879,2785.8,2785.7,0.00471114]
[1645916924681,1.35495879,2785.8,2785.5,5.6872]
[1645916924882,4.85495879,2785.7,2785.6,0.00518555]
[1645916925084,5.21105879,2785.7,2785.6,0.00518555]
[1645916925288,5.21105879,2785.7,2784.9,0.25]
[1645916925289,0.3561,2785.5,2784.9,0.25]
[1645916925485,0.3561,2785.3,2784.2,5.6598]
[1645916925681,0.3561,2785.1,2784.2,5.6598]
[1645916925879,5.29835879,2785.0,2784.2,5.6598]
[1645916926080,1.71105879,2784.9,2784.2,5.6598]
[1645916926278,0.3561,2784.7,2784.2,5.6598]
[1645916926479,1.35495879,2784.6,2784.2,5.6598]
[1645916926679,4.9434,2785.0,2784.2,5.6598]
[1645916927133,1.69046129,2784.9,2784.2,5.6598]
[1645916927323,4.83436129,2784.8,2784.2,5.6598]
[1645916927525,1.33436129,2784.7,2784.2,5.6598]
[1645916928929,5.19046129,2784.7,2784.1,3.5546]
[1645916929130,4.83436129,2784.6,2784.1,3.5546]
[1645916929333,1.33436129,2784.5,2784.1,3.5546]
[1645916929528,1.33436129,2784.4,2784.1,3.5546]
[1645916929732,1.3561,2784.7,2784.2,0.00518694]
[1645916929929,1.33115536,2784.6,2784.2,0.00518694]
[1645916930130,0.2405,2784.5,2784.2,0.00518694]
[1645916930433,1.33115536,2784.4,2784.2,0.00518694]
[1645916930635,1.28115536,2784.4,2784.2,0.00518694]
[1645916930877,1.28115536,2784.4,2784.1,3.5546]
[1645916931082,0.18008108,2784.3,2783.5,0.25]
[1645916931284,0.4997,2784.2,2783.0,3.7341]
[1645916931479,0.4997,2784.2,2782.5,8.6521]
[1645916931480,0.3561,2784.0,2782.5,8.6521]
[1645916931684,0.3561,2783.6,2782.5,0.25]
[1645916931883,0.3561,2783.4,2782.5,0.25]
[1645916932080,0.3561,2783.2,2782.5,0.25]
[1645916932382,3.9997,2783.1,2782.2,5.7672]
[1645916932579,0.3561,2782.9,2782.2,5.7672]
[1645916932783,3.8561,2783.0,2782.2,5.7672]
[1645916932980,0.89903,2783.2,2782.2,5.7672]
[1645916933381,4.39903,2783.2,2782.2,5.7672]
[1645916933788,6.2980689,2783.4,2782.2,5.7672]
[1645916933986,0.3561,2783.3,2782.2,5.7672]
[1645916934186,0.4496,2782.6,2782.2,5.7672]
[1645916934667,4.39894,2783.2,2782.2,5.7672]
[1645916934854,0.3561,2783.1,2782.2,5.7672]
[1645916935054,0.89894,2783.2,2782.2,5.7672]
[1645916935759,3.5,2783.1,2782.6,0.00518486]
[1645916935954,0.89894,2783.2,2782.6,0.00518486]
[1645916936755,0.89894,2783.2,2782.2,5.7672]
[1645916937154,0.89894,2783.2,2782.8,0.00518466]
[1645916937958,0.89894,2783.2,2782.2,5.7672]
[1645916938161,0.89894,2783.2,2782.9,0.00518456]
[1645916938573,1.25504,2783.2,2782.9,0.00518456]
[1645916939175,1.25504,2783.2,2782.2,5.7672]
[1645916939377,1.25504,2783.2,2782.9,0.00518451]
[1645916940380,1.25504,2783.2,2782.5,1.0]
[1645916940575,1.25504,2783.2,2782.9,0.00518451]
[1645916940776,0.89894,2783.2,2782.9,0.00518451]
[1645916941176,0.00403285,2782.6,2782.2,5.7672]
[1645916943028,0.00403285,2782.6,2782.3,0.00276684]
[1645916943933,0.00403285,2782.6,2782.2,5.7672]
[1645916944135,0.00403285,2782.6,2782.3,0.00276679]
[1645916945137,0.00403285,2782.6,2782.2,5.7672]
[1645916945337,0.00403285,2782.6,2781.2,7.36]
[1645916945539,0.6606,2782.5,2782.3,0.00518511]
[1645916945739,3.8561,2782.4,2782.3,0.00518511]
[1645916945979,15.64911898,2782.4,2782.3,0.00518511]
[1645916946179,5.5167,2782.4,2782.3,0.00518511]
[1645916946385,2.00403285,2782.6,2781.3,0.02074782]
[1645916946386,0.00403285,2782.6,2781.3,3.5]
[1645916946579,0.00403285,2782.6,2781.3,3.501241]
[1645916946778,0.00403285,2782.6,2781.5,0.8989207]
[1645916946977,0.00403285,2782.6,2781.6,0.5]
[1645916947178,0.00403285,2782.6,2781.7,5.6979]
[1645916947779,0.00403285,2782.6,2782.0,0.00518169]
[1645916948783,0.00403285,2782.6,2781.7,5.6979]
[1645916949188,0.00403285,2782.6,2782.2,0.00518154]
[1645916949924,0.00403285,2782.6,2781.7,5.6979]
[1645916950122,0.14763285,2782.6,2781.7,5.6979]
[1645916950321,0.14763285,2782.6,2782.3,0.00485534]
[1645916951125,0.14763285,2782.6,2781.7,5.6979]
[1645916951528,0.14763285,2782.6,2782.3,0.00485529]
[1645916952427,0.14763285,2782.6,2781.7,5.6979]
[1645916952628,0.14763285,2782.6,2782.3,0.00485529]
[1645916953681,0.14763285,2782.6,2781.7,5.6979]
[1645916953878,0.14763285,2782.6,2782.3,0.00485529]
[1645916954479,0.00403285,2782.6,2782.3,0.00485529]
[1645916954883,0.00403285,2782.6,2781.7,5.6979]
[1645916955082,0.00403285,2782.6,2782.3,0.00487699]
[1645916956083,0.00403285,2782.6,2781.7,5.6979]
[1645916956286,0.00403285,2782.6,2782.3,0.00487327]
[1645916956890,2.15427,2783.0,2782.3,0.00487327]
[1645916957131,3.15427,2783.0,2781.7,5.6979]
[1645916957333,1.79817,2783.0,2781.7,5.6979]
[1645916957532,1.0,2783.0,2781.7,5.6979]
[1645916957731,1.4997,2783.1,2782.3,0.00487327]
[1645916958131,0.4997,2783.1,2782.3,0.00487327]
[1645916958332,0.7997,2783.1,2781.7,5.6979]
[1645916958538,0.1436,2783.0,2781.7,5.6979]
[1645916958737,0.1436,2783.0,2782.6,0.00487158]
[1645916958738,0.6561,2782.8,2782.6,0.00487158]
[1645916958934,0.1436,2782.7,2782.6,0.00487158]
[1645916959539,0.1436,2782.7,2781.7,5.6979]
[1645916959938,1.199,2782.9,2782.5,0.00487163]
[1645916959939,0.899,2782.9,2782.5,0.00487163]
[1645916960140,1.0,2783.2,2782.5,0.00487163]
[1645916960979,1.0,2783.2,2782.4,3.6734]
[1645916961179,1.0,2783.2,2782.7,0.00487143]
[1645916961379,1.0,2783.2,2782.4,2.05816396]
[1645916962180,0.75,2783.2,2782.4,2.05816396]
[1645916962683,7.36805425,2784.3,2782.6,10.88]
[1645916962684,0.1436,2784.0,2782.6,10.88]
[1645916962882,0.1436,2784.2,2782.9,0.3561]
[1645916963081,3.8561,2784.5,2783.0,0.8731]
[1645916963282,1.0,2784.1,2783.0,0.8731]
[1645916963484,1.0,2784.1,2783.0,0.517]
[1645916963684,1.0,2784.1,2783.1,0.1436]
[1645916963883,1.0,2784.1,2783.2,11.2361]
[1645916964086,1.0,2784.1,2783.3,0.8731]
[1645916964286,3.9997,2784.8,2783.3,0.8731]
[1645916964287,3.6436,2784.8,2783.5,0.3561]
[1645916964645,1.004307,2784.7,2783.7,0.3561]
[1645916964830,3.5,2785.0,2783.7,0.3561]
[1645916964831,3.5,2785.0,2783.8,5.574]
[1645916965031,1.64797,2785.1,2783.8,5.574]
[1645916965231,1.34797,2785.1,2783.8,5.574]
[1645916965431,0.1436,2785.0,2783.8,5.574]
[1645916965633,0.1436,2785.0,2783.8,6.091]
[1645916965834,0.00517507,2784.6,2783.8,6.091]
[1645916966232,0.00517507,2784.6,2783.8,6.4471]
[1645916966833,0.1436,2785.0,2783.9,3.0]
[1645916967034,0.00517486,2784.6,2783.9,3.0]
[1645916967338,0.00517486,2784.6,2783.9,6.8561]
[1645916967735,0.00517486,2784.6,2783.9,3.3561]
[1645916967936,0.1436,2785.2,2783.9,3.3561]
[1645916968135,0.1436,2785.2,2784.1,0.3561]
[1645916968395,0.00407634,2785.3,2784.2,0.3561]
[1645916969100,1.00407634,2785.3,2784.2,0.3561]
[1645916969502,0.67400918,2785.4,2784.6,0.00276895]
[1645916969906,0.3561,2785.2,2784.6,0.00276895]
[1645916970105,1.02284578,2785.0,2784.6,0.00276895]
[1645916970302,0.3561,2784.9,2784.0,0.25]
[1645916970504,0.3561,2784.9,2783.8,5.574]
[1645916970902,0.3561,2784.9,2784.8,0.00517526]
[1645916971102,0.00180988,2784.7,2783.8,5.574]
[1645916972327,0.00180988,2784.7,2783.8,5.7176]
[1645916973131,0.00180988,2784.7,2783.8,5.574]
[1645916975539,0.00180988,2784.7,2784.1,0.0051759]
[1645916976382,0.00180988,2784.7,2783.8,5.574]
[1645916976783,0.00180988,2784.7,2784.3,0.00517575]
[1645916977583,0.00180988,2784.7,2783.8,5.574]
[1645916977982,0.00180988,2784.7,2784.4,0.00517565]
[1645916978987,0.00180988,2784.7,2783.9,1.3978298]
[1645916979187,0.00180988,2784.7,2784.4,0.0051756]
[1645916980029,0.00180988,2784.7,2783.9,12.2778298]
[1645916980231,0.00180988,2784.7,2783.9,0.4997]
[1645916980434,0.00180988,2784.7,2784.4,0.00484977]
[1645916981233,0.00180988,2784.7,2784.0,3.0315]
[1645916981431,0.00180988,2784.7,2784.0,1.41218676]
[1645916981631,0.00180988,2784.7,2784.4,0.00484977]
[1645916982436,0.00180988,2784.7,2783.8,16.454]
[1645916982632,0.00180988,2784.7,2784.4,0.00484977]
[1645916983593,0.00180988,2784.7,2784.0,2.8097]
[1645916983995,0.00180988,2784.7,2784.4,0.00484977]
[1645916984793,0.00180988,2784.7,2784.0,2.8097]
[1645916985190,0.00180988,2784.7,2784.4,0.00487147]
[1645916985991,0.00180988,2784.7,2784.0,2.8097]
[1645916986392,0.00180988,2784.7,2784.4,0.00487147]
[1645916987225,0.00180988,2784.7,2784.0,2.8097]
[1645916987425,0.00180988,2784.7,2784.4,0.00487147]
[1645916988433,0.00180988,2784.7,2784.0,2.8097]
[1645916988829,0.00180988,2784.7,2784.4,0.00487002]
[1645916989739,0.00180988,2784.7,2784.0,2.8097]
[1645916990032,0.00180988,2784.7,2784.4,0.00487002]
[1645916990878,0.10267328,2785.4,2784.1,3.0]
[1645916991075,0.00486883,2785.1,2784.4,0.00487002]
[1645916992080,0.3,2785.3,2784.2,0.517]
[1645916992277,0.10267328,2785.4,2784.6,0.00486992]
[1645916992278,0.00486908,2785.1,2784.6,0.00486992]
[1645916993278,0.6561,2785.5,2784.2,0.517]
[1645916993487,0.00486915,2785.1,2784.7,0.00486991]
[1645916994487,0.3,2785.5,2784.2,11.7531]
[1645916994737,6.919e-05,2785.1,2784.7,0.00486995]
[1645916994937,6.919e-05,2785.1,2784.8,0.8731]
[1645916995135,6.919e-05,2785.1,2784.9,11.2361]
[1645916995332,6.919e-05,2785.1,2785.0,24.2143]
[1645916995530,6.919e-05,2785.1,2785.0,21.27978247]
[1645916995736,0.00407634,2786.3,2785.0,21.27978247]
[1645916995933,1.22232803,2786.2,2785.3,0.3561]
[1645916996135,1.22232803,2786.2,2785.4,11.2361]
[1645916996332,1.22232803,2786.2,2785.5,11.397]
[1645916996531,1.22232803,2786.2,2785.5,11.7531]
[1645916997330,1.22232803,2786.1,2785.5,11.7531]
[1645916997531,0.00407634,2786.7,2785.5,11.7531]
[1645916997733,1.22270982,2786.6,2785.5,11.7531]
[1645916997933,1.22678616,2786.5,2785.5,11.7531]
[1645916998133,1.22270982,2786.4,2785.7,11.2361]
[1645916998374,1.22270982,2786.4,2785.8,0.517]
[1645916998375,1.22270982,2786.3,2785.8,0.517]
[1645916998579,1.22270982,2786.3,2785.6,0.8731]
[1645916998783,0.00407634,2786.8,2785.6,0.8731]
[1645916999083,1.22267994,2786.7,2785.6,0.517]
[1645916999282,0.66017634,2786.6,2785.3,1.2277]
[1645916999485,0.3561,2786.4,2785.1,3.0157]
[1645916999679,2.93488406,2786.5,2785.1,3.0157]
[1645916999680,0.3561,2786.2,2785.1,3.0157]
[1645916999882,0.3561,2786.0,2785.1,2.7657]
[1645917000180,1.22267994,2785.9,2785.1,2.7657]
[1645917000379,0.36017634,2786.1,2785.1,2.7657]
[1645917000380,1.22267994,2785.8,2785.1,2.7657]
[1645917000579,1.22267994,2785.7,2785.1,2.7657]
[1645917000779,0.90210634,2786.1,2785.0,7.1813]
[1645917000979,0.00484834,2785.7,2785.0,9.9177]
[1645917001384,0.00484834,2785.7,2785.0,8.29906775]
[1645917001780,0.00407634,2785.9,2785.0,8.29906775]
[1645917001984,0.00484854,2785.5,2785.0,8.29906775]
[1645917002840,0.00407634,2786.1,2785.0,8.29906775]
[1645917003044,1.19402768,2786.0,2785.1,0.8731]
[1645917003241,0.00484864,2785.4,2785.1,0.517]
[1645917004044,0.00407634,2786.3,2785.1,0.517]
[1645917004238,0.00484864,2785.4,2785.1,0.8731]
[1645917004441,0.00484864,2785.4,2785.2,14.7361]
[1645917004442,4.864e-05,2785.4,2785.2,14.7361]
[1645917004640,4.864e-05,2785.4,2785.3,14.897]
[1645917005240,0.00407634,2786.6,2785.3,14.897]
[1645917005442,1.19579607,2786.5,2785.3,14.897]
[1645917005640,1.19579607,2786.5,2785.4,0.3561]
[1645917005875,1.19987241,2786.4,2785.6,11.2361]
[1645917006178,1.19579607,2786.3,2785.7,0.8731]
[1645917006375,1.19579607,2786.2,2785.8,0.517]
[1645917006581,0.00407634,2786.7,2785.8,0.517]
[1645917006777,1.19609572,2786.6,2785.9,5.814]
[1645917006974,1.19609572,2786.5,2785.9,6.331]
[1645917007176,1.20017206,2786.8,2785.9,6.331]
[1645917007376,1.19609572,2786.7,2785.9,17.5671]
[1645917007577,0.00407634,2786.8,2786.1,10.88]
[1645917007785,1.1966989,2786.7,2786.2,11.397]
[1645917007977,1.20077524,2786.8,2786.2,11.397]
[1645917008176,0.4496,2786.9,2786.2,11.397]
[1645917008380,0.00407634,2787.3,2786.2,11.397]
[1645917008579,1.19616748,2787.2,2786.2,11.397]
[1645917008781,1.19616748,2787.2,2786.3,0.89734]
[1645917008981,1.20024382,2787.1,2786.4,0.517]
[1645917009185,0.00516969,2786.9,2786.4,0.517]
[1645917009380,0.00516969,2786.9,2786.5,0.8972949]
[1645917009636,0.00516969,2786.9,2786.6,0.517]
[1645917010126,0.67082212,2787.7,2786.6,0.517]
[1645917010428,0.00207787,2786.9,2786.6,11.397]
[1645917010629,7.787e-05,2786.9,2786.6,11.397]
[1645917010830,7.787e-05,2786.9,2786.6,12.97008922]
[1645917011032,7.787e-05,2786.9,2786.7,11.2361]
[1645917011230,4.17082212,2788.0,2786.8,11.397]
[1645917011428,0.00407634,2787.8,2786.9,17.0066]
[1645917011629,0.66674578,2788.1,2787.0,0.517]
[1645917011630,1.19343825,2787.7,2787.0,0.517]
[1645917011833,0.00407634,2787.8,2787.0,11.397]
[1645917012033,1.19343825,2788.0,2787.0,11.397]
[1645917012034,1.19343825,2787.7,2787.0,11.397]
[1645917012231,0.66674578,2788.2,2787.1,1.79406]
[1645917012232,1.19343825,2787.6,2787.1,1.79406]
[1645917012427,1.19343825,2787.5,2787.2,0.517]
[1645917012628,0.00407634,2788.1,2787.2,0.517]
[1645917012827,1.19346809,2788.0,2787.3,0.8969981]
[1645917013028,0.00407634,2788.2,2787.3,0.517]
[1645917013029,1.19346809,2787.9,2787.3,0.517]
[1645917013229,1.19346809,2787.8,2787.2,2.9496]
[1645917013489,5.04956809,2787.8,2786.9,10.6116]
[1645917013685,0.3561,2787.6,2786.9,10.6116]
[1645917013884,3.50407634,2787.8,2786.9,10.6116]
[1645917013885,1.54956809,2787.5,2786.9,10.6116]
[1645917014085,1.14346809,2787.4,2786.9,6.1266]
[1645917014489,0.3561,2787.6,2786.9,6.1266]
[1645917014887,0.3561,2787.4,2786.7,0.25]
[1645917015089,0.3561,2787.2,2786.7,0.25]
[1645917015289,0.3561,2787.2,2786.5,5.7763]
[1645917015588,0.3561,2787.0,2786.5,5.7763]
[1645917015792,0.00407634,2787.2,2786.5,5.7763]
[1645917015988,0.36017634,2787.3,2786.5,5.7763]
[1645917016386,0.00239979,2786.9,2786.5,5.7763]
[1645917016590,9.979e-05,2786.9,2786.5,17.55362]
[1645917016788,9.979e-05,2786.9,2786.5,7.57094]
[1645917017141,9.979e-05,2786.9,2786.6,8.7959]
[1645917017328,0.00407634,2787.8,2786.6,8.7959]
[1645917017528,0.00407634,2787.8,2786.6,13.3891]
[1645917018330,0.00407634,2787.8,2786.7,0.517]
[1645917018533,0.00407634,2787.8,2786.7,11.397]
[1645917018736,0.00407634,2787.8,2786.8,2.7786]
[1645917019133,0.00407634,2787.8,2786.9,4.017]